[Event "*** SCC Grand Prix: Titled Tuesday Blitz"]
[Site "Chess.com"]
[Date "2020.09.29"]
[Round "2"]
[White "TokChess"]
[Black "IsaacWiebe"]
[Result "1/2-1/2"]
[WhiteElo "2425"]
[BlackElo "2248"]
[TimeControl "180+1"]
[EndTime "10:18:35 PDT"]
[Termination "Game drawn by repetition"]

1. c4 {[%clk 0:03:00.9]} 1... e5 {[%clk 0:02:59.5]} 2. g3 {[%clk 0:03:00.3]}
2... Nf6 {[%clk 0:02:59.7]} 3. Bg2 {[%clk 0:03:00.5]} 3... d5 {[%clk 0:03:00]}
4. cxd5 {[%clk 0:03:01.2]} 4... Nxd5 {[%clk 0:03:00.9]} 5. Nc3 {[%clk
0:03:01.9]} 5... Nb6 {[%clk 0:03:01.2]} 6. Nf3 {[%clk 0:03:02.2]} 6... Nc6
{[%clk 0:03:01.6]} 7. O-O {[%clk 0:03:02.2]} 7... Be7 {[%clk 0:03:02]} 8. a3
{[%clk 0:02:59.8]} 8... a5 {[%clk 0:03:00.4]} 9. d3 {[%clk 0:02:59.1]} 9... O-O
{[%clk 0:02:59.9]} 10. Be3 {[%clk 0:02:52.2]} 10... f6 {[%clk 0:02:58.4]} 11.
Rc1 {[%clk 0:02:48]} 11... Be6 {[%clk 0:02:57.6]} 12. Nd2 {[%clk 0:02:47]} 12...
Nd5 {[%clk 0:02:44.3]} 13. Nxd5 {[%clk 0:02:44.1]} 13... Bxd5 {[%clk 0:02:44.2]}
14. Bxd5+ {[%clk 0:02:41.5]} 14... Qxd5 {[%clk 0:02:43.9]} 15. Qb3 {[%clk
0:02:42]} 15... Qxb3 {[%clk 0:02:43.5]} 16. Nxb3 {[%clk 0:02:42.7]} 16... Rfd8
{[%clk 0:02:42]} 17. Rc4 {[%clk 0:02:38.2]} 17... a4 {[%clk 0:02:31]} 18. Nd2
{[%clk 0:02:32.4]} 18... Bd6 {[%clk 0:01:59.2]} 19. Ne4 {[%clk 0:02:15.2]} 19...
Ne7 {[%clk 0:01:50.8]} 20. Nxd6 {[%clk 0:02:01.3]} 20... cxd6 {[%clk 0:01:50.8]}
21. Rb4 {[%clk 0:01:56.9]} 21... Nd5 {[%clk 0:01:48.5]} 22. Rxb7 {[%clk
0:01:55.8]} 22... Nxe3 {[%clk 0:01:48.7]} 23. fxe3 {[%clk 0:01:56]} 23... Rdb8
{[%clk 0:01:48.9]} 24. Rxb8+ {[%clk 0:01:47.8]} 24... Rxb8 {[%clk 0:01:49.8]}
25. Rb1 {[%clk 0:01:47.9]} 25... Rc8 {[%clk 0:01:50.1]} 26. b3 {[%clk
0:01:36.3]} 26... axb3 {[%clk 0:01:49.2]} 27. Rxb3 {[%clk 0:01:35.8]} 27... Rc2
{[%clk 0:01:48.8]} 28. Kf2 {[%clk 0:01:35.8]} 28... Ra2 {[%clk 0:01:48.9]} 29.
Rb6 {[%clk 0:01:28.3]} 29... Rxa3 {[%clk 0:01:46.4]} 30. Rxd6 {[%clk 0:01:28.2]}
30... h5 {[%clk 0:01:42.3]} 31. Rd7 {[%clk 0:01:07.3]} 31... Kh7 {[%clk
0:01:34.3]} 32. Kf3 {[%clk 0:00:59.8]} 32... Kg6 {[%clk 0:01:33.5]} 33. h3
{[%clk 0:00:58.5]} 33... Kh6 {[%clk 0:01:24.4]} 34. Rd8 {[%clk 0:00:58.6]} 34...
g5 {[%clk 0:01:20.9]} 35. Ke4 {[%clk 0:00:46.7]} 35... Kg6 {[%clk 0:01:20.1]}
36. Rg8+ {[%clk 0:00:46.7]} 36... Kf7 {[%clk 0:01:19.6]} 37. Rh8 {[%clk
0:00:45.9]} 37... Kg6 {[%clk 0:01:14.1]} 38. Rg8+ {[%clk 0:00:43.6]} 38... Kf7
{[%clk 0:01:14.1]} 39. Rb8 {[%clk 0:00:42.1]} 39... Kg6 {[%clk 0:01:13.1]} 40.
g4 {[%clk 0:00:26.6]} 40... hxg4 {[%clk 0:01:12]} 41. hxg4 {[%clk 0:00:26.8]}
41... Ra2 {[%clk 0:01:12.2]} 42. Kf3 {[%clk 0:00:26.9]} 42... Ra4 {[%clk
0:01:10.3]} 43. Rd8 {[%clk 0:00:25.9]} 43... Kf7 {[%clk 0:01:08.1]} 44. d4
{[%clk 0:00:25.4]} 44... exd4 {[%clk 0:01:07.3]} 45. exd4 {[%clk 0:00:19.7]}
45... Ke7 {[%clk 0:01:04.6]} 46. Rd5 {[%clk 0:00:19.7]} 46... Ke6 {[%clk
0:01:04.4]} 47. Rd8 {[%clk 0:00:16.7]} 47... Ke7 {[%clk 0:01:04.1]} 48. Rd5
{[%clk 0:00:16.8]} 48... Ke6 {[%clk 0:01:04.1]} 49. e4 {[%clk 0:00:16.3]} 49...
Ra3+ {[%clk 0:01:01.9]} 50. Kf2 {[%clk 0:00:16.6]} 50... Rb3 {[%clk 0:00:58.5]}
51. Ra5 {[%clk 0:00:16.1]} 51... Rd3 {[%clk 0:00:58]} 52. Ra6+ {[%clk 0:00:16]}
52... Kf7 {[%clk 0:00:57.3]} 53. d5 {[%clk 0:00:16.4]} 53... Ke7 {[%clk
0:00:37.4]} 54. Re6+ {[%clk 0:00:15.6]} 54... Kf7 {[%clk 0:00:36.9]} 55. Rc6
{[%clk 0:00:16.3]} 55... Ke7 {[%clk 0:00:30.4]} 56. Rc7+ {[%clk 0:00:15.3]}
56... Kd6 {[%clk 0:00:26]} 57. Rf7 {[%clk 0:00:15.1]} 57... Ke5 {[%clk
0:00:25.7]} 58. Re7+ {[%clk 0:00:15.3]} 58... Kf4 {[%clk 0:00:25.4]} 59. Re6
{[%clk 0:00:15.6]} 59... Rd2+ {[%clk 0:00:16]} 60. Ke1 {[%clk 0:00:15.8]} 60...
Rd4 {[%clk 0:00:16.5]} 61. d6 {[%clk 0:00:14.1]} 61... Kxg4 {[%clk 0:00:15.2]}
62. Ke2 {[%clk 0:00:13.9]} 62... Kf4 {[%clk 0:00:15.2]} 63. Rxf6+ {[%clk
0:00:12.3]} 63... Kxe4 {[%clk 0:00:15.2]} 64. Re6+ {[%clk 0:00:12.7]} 64... Kf5
{[%clk 0:00:15.2]} 65. Rh6 {[%clk 0:00:11.4]} 65... Ke5 {[%clk 0:00:15.3]} 66.
Ke3 {[%clk 0:00:11.8]} 66... Rxd6 {[%clk 0:00:15.2]} 67. Rh8 {[%clk 0:00:11.3]}
67... Kf5 {[%clk 0:00:15.2]} 68. Rf8+ {[%clk 0:00:11.5]} 68... Kg4 {[%clk
0:00:15.6]} 69. Kf2 {[%clk 0:00:11.9]} 69... Rd2+ {[%clk 0:00:15.4]} 70. Kg1
{[%clk 0:00:12.2]} 70... Ra2 {[%clk 0:00:16]} 71. Rc8 {[%clk 0:00:12.1]} 71...
Kh4 {[%clk 0:00:16.3]} 72. Rc3 {[%clk 0:00:12]} 72... g4 {[%clk 0:00:16.2]} 73.
Rd3 {[%clk 0:00:12.3]} 73... g3 {[%clk 0:00:16.4]} 74. Rd8 {[%clk 0:00:12.4]}
74... Kh3 {[%clk 0:00:16.8]} 75. Rh8+ {[%clk 0:00:12.3]} 75... Kg4 {[%clk
0:00:17.3]} 76. Rg8+ {[%clk 0:00:12.9]} 76... Kh3 {[%clk 0:00:18.2]} 77. Rh8+
{[%clk 0:00:12.8]} 77... Kg4 {[%clk 0:00:19.1]} 78. Rg8+ {[%clk 0:00:13.2]}
78... Kh3 {[%clk 0:00:20]} 79. Rh8+ {[%clk 0:00:13.6]} 1/2-1/2

[Event "*** SCC Grand Prix: Titled Tuesday Blitz"]
[Site "Chess.com"]
[Date "2020.09.29"]
[Round "2"]
[White "PLAYER_2006_M"]
[Black "OlaaLa"]
[Result "1-0"]
[WhiteElo "2566"]
[BlackElo "2321"]
[TimeControl "180+1"]
[EndTime "10:18:36 PDT"]
[Termination "PLAYER_2006_M won on time"]

1. d4 {[%clk 0:02:41.6]} 1... f5 {[%clk 0:02:56.1]} 2. Nc3 {[%clk 0:02:41.4]}
2... Nf6 {[%clk 0:02:55.8]} 3. Bg5 {[%clk 0:02:41.8]} 3... d5 {[%clk 0:02:56.1]}
4. Bxf6 {[%clk 0:02:41.6]} 4... exf6 {[%clk 0:02:56.3]} 5. e3 {[%clk 0:02:42.5]}
5... Be6 {[%clk 0:02:56.2]} 6. g3 {[%clk 0:02:43.4]} 6... Qd7 {[%clk 0:02:56.7]}
7. Bg2 {[%clk 0:02:44.3]} 7... Nc6 {[%clk 0:02:56.8]} 8. Nge2 {[%clk 0:02:45.2]}
8... O-O-O {[%clk 0:02:50.9]} 9. h4 {[%clk 0:02:44.8]} 9... Bb4 {[%clk
0:02:49.5]} 10. a3 {[%clk 0:02:44.3]} 10... Ba5 {[%clk 0:02:44.7]} 11. b4 {[%clk
0:02:43.7]} 11... Bb6 {[%clk 0:02:44.9]} 12. Nf4 {[%clk 0:02:43.7]} 12... Ne7
{[%clk 0:02:44.4]} 13. a4 {[%clk 0:02:41]} 13... c6 {[%clk 0:02:38.8]} 14. a5
{[%clk 0:02:36.1]} 14... Bc7 {[%clk 0:02:37.5]} 15. a6 {[%clk 0:02:35.9]} 15...
b6 {[%clk 0:02:26.6]} 16. b5 {[%clk 0:02:32.7]} 16... Bxf4 {[%clk 0:02:22.3]}
17. gxf4 {[%clk 0:02:29.6]} 17... cxb5 {[%clk 0:02:22.6]} 18. Rb1 {[%clk
0:02:29.4]} 18... Nc6 {[%clk 0:02:08]} 19. Nxb5 {[%clk 0:02:27]} 19... Na5
{[%clk 0:02:07.7]} 20. Rb4 {[%clk 0:01:50.2]} 20... Kb8 {[%clk 0:02:04]} 21. Qf3
{[%clk 0:01:46.7]} 21... Rc8 {[%clk 0:01:55.4]} 22. c3 {[%clk 0:01:45.8]} 22...
Rc4 {[%clk 0:01:49]} 23. Bf1 {[%clk 0:01:45.4]} 23... Rc6 {[%clk 0:01:40]} 24.
Bd3 {[%clk 0:01:41.3]} 24... Qc8 {[%clk 0:01:14.5]} 25. Kd2 {[%clk 0:01:39.1]}
25... Nc4+ {[%clk 0:01:02.4]} 26. Bxc4 {[%clk 0:01:38.1]} 26... dxc4 {[%clk
0:01:00]} 27. h5 {[%clk 0:01:34.4]} 27... Rd8 {[%clk 0:00:57.9]} 28. Rg1 {[%clk
0:01:32]} 28... Bd5 {[%clk 0:00:56.6]} 29. Qd1 {[%clk 0:01:31.2]} 29... Rd7
{[%clk 0:00:34.2]} 30. Rg3 {[%clk 0:01:25.8]} 30... Qxa6 {[%clk 0:00:33.9]} 31.
Rb2 {[%clk 0:01:20.3]} 31... Qb7 {[%clk 0:00:30.9]} 32. Na3 {[%clk 0:01:18.3]}
32... a6 {[%clk 0:00:30.4]} 33. Qa1 {[%clk 0:01:14.7]} 33... b5 {[%clk
0:00:29.8]} 34. Nc2 {[%clk 0:01:14.8]} 34... Rb6 {[%clk 0:00:27]} 35. Nb4 {[%clk
0:01:12.3]} 35... Be4 {[%clk 0:00:23.9]} 36. Ra2 {[%clk 0:01:11]} 36... Ka7
{[%clk 0:00:23.4]} 37. Ra4 {[%clk 0:01:11.1]} 37... bxa4 {[%clk 0:00:22.8]} 38.
Qxa4 {[%clk 0:01:11.6]} 38... Rxb4 {[%clk 0:00:18.7]} 39. cxb4 {[%clk
0:01:11.3]} 39... Qb5 {[%clk 0:00:18.3]} 40. Qxb5 {[%clk 0:01:06.4]} 40... axb5
{[%clk 0:00:18.1]} 41. Kc3 {[%clk 0:01:07.3]} 41... Kb6 {[%clk 0:00:18.3]} 42.
Rg1 {[%clk 0:01:07.7]} 42... Ra7 {[%clk 0:00:18.5]} 43. Kb2 {[%clk 0:01:08.3]}
43... Bf3 {[%clk 0:00:16.1]} 44. h6 {[%clk 0:01:07.2]} 44... g6 {[%clk
0:00:13.8]} 45. Rg3 {[%clk 0:01:07.3]} 45... Be4 {[%clk 0:00:13.8]} 46. f3
{[%clk 0:01:07.4]} 46... Bd5 {[%clk 0:00:13.8]} 47. Kc3 {[%clk 0:00:59.6]} 47...
Ra3+ {[%clk 0:00:13.6]} 48. Kb2 {[%clk 0:00:59.3]} 48... Rb3+ {[%clk 0:00:14]}
49. Kc2 {[%clk 0:00:59.9]} 49... Rxb4 {[%clk 0:00:14.4]} 50. Rxg6 {[%clk
0:01:00.3]} 50... Ra4 {[%clk 0:00:11.6]} 51. Rxf6+ {[%clk 0:01:00.5]} 51... Kc7
{[%clk 0:00:10.5]} 52. Rxf5 {[%clk 0:00:59.1]} 52... Kd6 {[%clk 0:00:10.5]} 53.
e4 {[%clk 0:00:59.1]} 53... Be6 {[%clk 0:00:09.9]} 54. Rxb5 {[%clk 0:00:59.4]}
54... Ra3 {[%clk 0:00:09.1]} 55. Rb6+ {[%clk 0:00:58.6]} 55... Ke7 {[%clk
0:00:09]} 56. f5 {[%clk 0:00:59]} 56... Bd7 {[%clk 0:00:08.8]} 57. f6+ {[%clk
0:00:59.4]} 57... Ke8 {[%clk 0:00:07.8]} 58. Rb8+ {[%clk 0:00:59.5]} 58... Kf7
{[%clk 0:00:08.1]} 59. Rb7 {[%clk 0:01:00.4]} 59... Ke8 {[%clk 0:00:06.8]} 60.
f7+ {[%clk 0:01:00.8]} 60... Kxf7 {[%clk 0:00:07.3]} 61. Rxd7+ {[%clk
0:01:01.7]} 61... Kg6 {[%clk 0:00:07.8]} 62. Rd6+ {[%clk 0:01:02]} 62... Kg5
{[%clk 0:00:07.8]} 63. Rd7 {[%clk 0:00:56.8]} 63... Kxh6 {[%clk 0:00:07.4]} 64.
Rf7 {[%clk 0:00:57.2]} 64... Kg6 {[%clk 0:00:05.7]} 65. Rf4 {[%clk 0:00:57]}
65... h5 {[%clk 0:00:05.7]} 66. d5 {[%clk 0:00:57.5]} 66... Rd3 {[%clk
0:00:04.1]} 67. Rf8 {[%clk 0:00:49.7]} 67... h4 {[%clk 0:00:03.3]} 68. f4 {[%clk
0:00:49.7]} 68... h3 {[%clk 0:00:03.2]} 69. f5+ {[%clk 0:00:48.1]} 69... Kg7
{[%clk 0:00:03.6]} 70. Ra8 {[%clk 0:00:48]} 70... h2 {[%clk 0:00:03.4]} 71. Ra1
{[%clk 0:00:47.9]} 71... Kf6 {[%clk 0:00:02]} 72. Rh1 {[%clk 0:00:47.2]} 72...
Rh3 {[%clk 0:00:02]} 73. d6 {[%clk 0:00:47.8]} 73... Ke5 {[%clk 0:00:01.2]} 74.
d7 {[%clk 0:00:47.7]} 74... Rh8 {[%clk 0:00:01.7]} 75. Kc3 {[%clk 0:00:46.5]}
75... Kxe4 {[%clk 0:00:01.6]} 76. Rxh2 {[%clk 0:00:47.1]} 1-0

[Event "*** SCC Grand Prix: Titled Tuesday Blitz"]
[Site "Chess.com"]
[Date "2020.09.29"]
[Round "2"]
[White "Gabrielian_Artur"]
[Black "BigAl"]
[Result "0-1"]
[WhiteElo "2743"]
[BlackElo "2506"]
[TimeControl "180+1"]
[EndTime "10:18:40 PDT"]
[Termination "BigAl won by resignation"]

1. e4 {[%clk 0:03:00.9]} 1... c6 {[%clk 0:03:00.4]} 2. d4 {[%clk 0:03:00.3]}
2... d5 {[%clk 0:03:01.2]} 3. Nd2 {[%clk 0:03:00.1]} 3... dxe4 {[%clk
0:03:01.1]} 4. Nxe4 {[%clk 0:03:00.7]} 4... Nf6 {[%clk 0:03:02]} 5. Nxf6+ {[%clk
0:03:00.9]} 5... exf6 {[%clk 0:03:02.9]} 6. c3 {[%clk 0:03:01.4]} 6... Bd6
{[%clk 0:03:03.8]} 7. Bd3 {[%clk 0:03:01.6]} 7... O-O {[%clk 0:03:04.7]} 8. Qc2
{[%clk 0:03:02.2]} 8... Re8+ {[%clk 0:03:05.4]} 9. Ne2 {[%clk 0:03:02.6]} 9...
h5 {[%clk 0:03:06.1]} 10. O-O {[%clk 0:03:03]} 10... h4 {[%clk 0:03:05.3]} 11.
h3 {[%clk 0:03:03.4]} 11... Nd7 {[%clk 0:03:02.1]} 12. Bd2 {[%clk 0:03:01]}
12... Nf8 {[%clk 0:03:01.8]} 13. Rad1 {[%clk 0:02:59.5]} 13... Be6 {[%clk
0:02:44.8]} 14. c4 {[%clk 0:02:57.3]} 14... Rc8 {[%clk 0:02:44.3]} 15. Rfe1
{[%clk 0:02:54.3]} 15... Bb8 {[%clk 0:02:44.1]} 16. Bf4 {[%clk 0:02:46.2]} 16...
Qa5 {[%clk 0:02:24.4]} 17. Bxb8 {[%clk 0:02:44.6]} 17... Rxb8 {[%clk 0:02:24.7]}
18. d5 {[%clk 0:02:20.3]} 18... cxd5 {[%clk 0:02:17.1]} 19. c5 {[%clk
0:02:19.3]} 19... Rbc8 {[%clk 0:02:07.8]} 20. Rc1 {[%clk 0:02:18.5]} 20... Bd7
{[%clk 0:02:03.6]} 21. a3 {[%clk 0:02:14.4]} 21... Ba4 {[%clk 0:01:52.3]} 22. b3
{[%clk 0:02:11.3]} 22... Bc6 {[%clk 0:01:50.7]} 23. Qb2 {[%clk 0:02:04.9]} 23...
a6 {[%clk 0:01:45]} 24. b4 {[%clk 0:02:04.3]} 24... Qc7 {[%clk 0:01:44.9]} 25.
Qd4 {[%clk 0:01:59.9]} 25... Re5 {[%clk 0:01:32.5]} 26. Qxh4 {[%clk 0:01:44.1]}
26... Rce8 {[%clk 0:01:32.5]} 27. f3 {[%clk 0:01:44.6]} 27... Ng6 {[%clk
0:01:20.9]} 28. Qf2 {[%clk 0:01:43.1]} 28... Qe7 {[%clk 0:01:17.6]} 29. Kf1
{[%clk 0:01:35.7]} 29... f5 {[%clk 0:00:44.5]} 30. f4 {[%clk 0:01:22.2]} 30...
Re3 {[%clk 0:00:44.6]} 31. Nd4 {[%clk 0:01:17.9]} 31... Nxf4 {[%clk 0:00:36.4]}
32. Rxe3 {[%clk 0:01:12.7]} 32... Qxe3 {[%clk 0:00:36.1]} 33. Qxe3 {[%clk
0:01:12.9]} 33... Rxe3 {[%clk 0:00:36]} 34. Bxf5 {[%clk 0:01:05.2]} 34... g6
{[%clk 0:00:30.5]} 35. Nxc6 {[%clk 0:00:49.9]} 35... bxc6 {[%clk 0:00:29.4]} 36.
Bd7 {[%clk 0:00:50]} 36... Nd3 {[%clk 0:00:26.8]} 37. Rd1 {[%clk 0:00:49.2]}
37... Ne5 {[%clk 0:00:26.8]} 38. Bc8 {[%clk 0:00:27.8]} 38... Rxa3 {[%clk
0:00:26.5]} 39. Ke2 {[%clk 0:00:25.6]} 39... f6 {[%clk 0:00:26.7]} 40. h4 {[%clk
0:00:22.5]} 40... Kf7 {[%clk 0:00:26.8]} 41. g4 {[%clk 0:00:22.9]} 41... Rh3
{[%clk 0:00:25.6]} 42. Ra1 {[%clk 0:00:21.6]} 42... Rh2+ {[%clk 0:00:25.6]} 43.
Ke3 {[%clk 0:00:19.6]} 43... Nc4+ {[%clk 0:00:25.4]} 44. Kd3 {[%clk 0:00:19.1]}
44... Rh3+ {[%clk 0:00:25.4]} 45. Kc2 {[%clk 0:00:17.7]} 45... Rh2+ {[%clk
0:00:24.7]} 46. Kc3 {[%clk 0:00:17.9]} 46... Rh3+ {[%clk 0:00:24.8]} 47. Kd4
{[%clk 0:00:17]} 47... Ne5 {[%clk 0:00:20.7]} 48. Bxa6 {[%clk 0:00:17.1]} 48...
Rxh4 {[%clk 0:00:20.4]} 49. b5 {[%clk 0:00:16]} 49... Rxg4+ {[%clk 0:00:20.7]}
50. Ke3 {[%clk 0:00:15.7]} 50... cxb5 {[%clk 0:00:19.4]} 51. Bxb5 {[%clk
0:00:15.6]} 51... Rg3+ {[%clk 0:00:19.8]} 52. Kf2 {[%clk 0:00:15.5]} 52... Rb3
{[%clk 0:00:19.5]} 53. Ra7+ {[%clk 0:00:13.1]} 53... Kg8 {[%clk 0:00:18.4]} 54.
Bd7 {[%clk 0:00:12.2]} 54... Nxd7 {[%clk 0:00:17.6]} 55. Rxd7 {[%clk 0:00:12.4]}
55... Rc3 {[%clk 0:00:14.8]} 56. Rxd5 {[%clk 0:00:12.4]} 56... Kf7 {[%clk
0:00:15.6]} 57. Ke2 {[%clk 0:00:12.9]} 57... Ke6 {[%clk 0:00:15.9]} 58. Rd6+
{[%clk 0:00:13.5]} 58... Ke5 {[%clk 0:00:15.9]} 59. Rc6 {[%clk 0:00:14]} 59...
g5 {[%clk 0:00:15]} 60. Kd2 {[%clk 0:00:14.5]} 60... Rc4 {[%clk 0:00:15.7]} 61.
Kd3 {[%clk 0:00:15]} 61... Rc1 {[%clk 0:00:16.1]} 62. Rc8 {[%clk 0:00:15.6]}
62... g4 {[%clk 0:00:15.2]} 63. c6 {[%clk 0:00:16.2]} 63... Kf4 {[%clk
0:00:15.7]} 64. Kd2 {[%clk 0:00:14]} 64... Rc5 {[%clk 0:00:15.7]} 65. Kd3 {[%clk
0:00:14.5]} 65... f5 {[%clk 0:00:16.3]} 66. Kd4 {[%clk 0:00:14.4]} 66... Rc1
{[%clk 0:00:16.1]} 67. Kd5 {[%clk 0:00:14.9]} 67... Kf3 {[%clk 0:00:16.3]} 68.
Ke5 {[%clk 0:00:12.5]} 68... f4 {[%clk 0:00:15.3]} 69. c7 {[%clk 0:00:12.3]}
69... Re1+ {[%clk 0:00:16.2]} 70. Kf5 {[%clk 0:00:11.3]} 70... Rc1 {[%clk
0:00:15.8]} 71. Ke5 {[%clk 0:00:11.6]} 71... g3 {[%clk 0:00:15.2]} 72. Rf8
{[%clk 0:00:10.8]} 72... Rc5+ {[%clk 0:00:15.3]} 73. Kd6 {[%clk 0:00:10]} 73...
Rxc7 {[%clk 0:00:15.7]} 74. Kxc7 {[%clk 0:00:10.1]} 74... g2 {[%clk 0:00:16.6]}
75. Rg8 {[%clk 0:00:10.3]} 75... Kf2 {[%clk 0:00:17.1]} 76. Kd6 {[%clk
0:00:11.2]} 76... f3 {[%clk 0:00:17.6]} 77. Ke5 {[%clk 0:00:11.9]} 77... g1=Q
{[%clk 0:00:17.4]} 78. Rxg1 {[%clk 0:00:11]} 78... Kxg1 {[%clk 0:00:17.7]} 79.
Kf4 {[%clk 0:00:11.9]} 79... f2 {[%clk 0:00:18.6]} 0-1

[Event "*** SCC Grand Prix: Titled Tuesday Blitz"]
[Site "Chess.com"]
[Date "2020.09.29"]
[Round "2"]
[White "smshk35"]
[Black "josorio78"]
[Result "0-1"]
[WhiteElo "2478"]
[BlackElo "2319"]
[TimeControl "180+1"]
[EndTime "10:18:42 PDT"]
[Termination "josorio78 won by resignation"]

1. e4 {[%clk 0:03:00.9]} 1... c5 {[%clk 0:02:59.8]} 2. Nf3 {[%clk 0:03:00.8]}
2... d6 {[%clk 0:02:59.8]} 3. d4 {[%clk 0:03:01.1]} 3... cxd4 {[%clk 0:03:00.3]}
4. Nxd4 {[%clk 0:03:02]} 4... Nf6 {[%clk 0:03:00.6]} 5. Nc3 {[%clk 0:03:02.1]}
5... a6 {[%clk 0:03:00]} 6. Bg5 {[%clk 0:03:02.1]} 6... Nbd7 {[%clk 0:02:59.8]}
7. Qe2 {[%clk 0:03:01.6]} 7... g6 {[%clk 0:02:58.5]} 8. f4 {[%clk 0:02:57.6]}
8... Qa5 {[%clk 0:02:55.4]} 9. Nb3 {[%clk 0:02:46.7]} 9... Qc7 {[%clk
0:02:54.8]} 10. O-O-O {[%clk 0:02:46.1]} 10... Bg7 {[%clk 0:02:54.8]} 11. Nd5
{[%clk 0:02:39.6]} 11... Nxd5 {[%clk 0:02:52.8]} 12. exd5 {[%clk 0:02:40.5]}
12... Nf6 {[%clk 0:02:50.9]} 13. Re1 {[%clk 0:02:35.8]} 13... Bg4 {[%clk
0:02:38.2]} 14. Qd2 {[%clk 0:02:14.5]} 14... O-O {[%clk 0:02:35.1]} 15. h3
{[%clk 0:02:14.6]} 15... Bf5 {[%clk 0:02:18.1]} 16. Bd3 {[%clk 0:01:54.2]} 16...
Bxd3 {[%clk 0:02:17.1]} 17. Qxd3 {[%clk 0:01:55.1]} 17... Rac8 {[%clk
0:02:15.4]} 18. Kb1 {[%clk 0:01:53.3]} 18... Rfe8 {[%clk 0:02:08.5]} 19. g4
{[%clk 0:01:51.3]} 19... Qc4 {[%clk 0:01:59.3]} 20. Rd1 {[%clk 0:01:35.2]} 20...
h6 {[%clk 0:01:55.9]} 21. Bh4 {[%clk 0:01:32.6]} 21... Qxf4 {[%clk 0:01:53.2]}
22. Rhf1 {[%clk 0:01:26.3]} 22... Qc4 {[%clk 0:01:52.4]} 23. Na5 {[%clk
0:00:43]} 23... Qxd3 {[%clk 0:01:49.1]} 24. Rxd3 {[%clk 0:00:43.9]} 24... b6
{[%clk 0:01:08.9]} 25. Nb3 {[%clk 0:00:19.7]} 25... Nd7 {[%clk 0:01:04.3]} 26.
Re1 {[%clk 0:00:19.1]} 26... Ne5 {[%clk 0:01:01.2]} 27. Rde3 {[%clk 0:00:19.5]}
27... Rc4 {[%clk 0:00:58.3]} 28. R3e2 {[%clk 0:00:19.3]} 28... Rec8 {[%clk
0:00:57]} 29. Bg3 {[%clk 0:00:19.4]} 29... a5 {[%clk 0:00:55.8]} 30. a3 {[%clk
0:00:19.8]} 30... a4 {[%clk 0:00:55.4]} 31. Nd2 {[%clk 0:00:19.5]} 31... Rxc2
{[%clk 0:00:55.4]} 32. Ne4 {[%clk 0:00:18.3]} 32... Rxe2 {[%clk 0:00:55.2]} 33.
Rxe2 {[%clk 0:00:19.2]} 33... Rc4 {[%clk 0:00:52.1]} 34. Nc3 {[%clk 0:00:19.5]}
34... Kf8 {[%clk 0:00:49.1]} 35. g5 {[%clk 0:00:18.2]} 35... hxg5 {[%clk
0:00:48.5]} 36. Ne4 {[%clk 0:00:18.5]} 36... Rd4 {[%clk 0:00:45.2]} 37. Nxg5
{[%clk 0:00:18.1]} 37... Rxd5 {[%clk 0:00:44]} 38. Rf2 {[%clk 0:00:18.1]} 38...
Bf6 {[%clk 0:00:43.1]} 39. Nh7+ {[%clk 0:00:17.6]} 39... Kg7 {[%clk 0:00:43.3]}
40. Nxf6 {[%clk 0:00:18.5]} 40... exf6 {[%clk 0:00:43.6]} 41. Bh4 {[%clk
0:00:17.2]} 41... f5 {[%clk 0:00:43.5]} 42. Rc2 {[%clk 0:00:15.5]} 42... Rc5
{[%clk 0:00:42.7]} 43. Rd2 {[%clk 0:00:15.1]} 43... d5 {[%clk 0:00:41.3]} 44.
Bf2 {[%clk 0:00:13.7]} 44... Rb5 {[%clk 0:00:41.1]} 45. Bd4 {[%clk 0:00:13.9]}
45... f6 {[%clk 0:00:40.1]} 46. Re2 {[%clk 0:00:13.5]} 46... g5 {[%clk
0:00:38.2]} 47. Rc2 {[%clk 0:00:10.5]} 47... Kg6 {[%clk 0:00:37.6]} 48. Rc7
{[%clk 0:00:09.6]} 48... Nc4 {[%clk 0:00:36.9]} 49. Kc2 {[%clk 0:00:08.1]} 49...
f4 {[%clk 0:00:35.6]} 50. Rc6 {[%clk 0:00:08.2]} 50... Ne3+ {[%clk 0:00:31.4]}
51. Kd3 {[%clk 0:00:07.1]} 51... Rb3+ {[%clk 0:00:31]} 52. Ke2 {[%clk
0:00:07.4]} 52... Kf5 {[%clk 0:00:28.9]} 53. Rxf6+ {[%clk 0:00:07.4]} 53... Ke4
{[%clk 0:00:29]} 54. Bxb6 {[%clk 0:00:06.8]} 54... Rxb2+ {[%clk 0:00:27.9]} 55.
Ke1 {[%clk 0:00:07.3]} 55... Kf3 {[%clk 0:00:26.8]} 56. Bxe3 {[%clk 0:00:06.6]}
56... Kxe3 {[%clk 0:00:26.3]} 57. Kf1 {[%clk 0:00:06.9]} 57... Kf3 {[%clk
0:00:22.2]} 58. Ke1 {[%clk 0:00:05.5]} 58... d4 {[%clk 0:00:20.4]} 59. Rg6
{[%clk 0:00:05.6]} 59... Rb5 {[%clk 0:00:19.8]} 60. Rd6 {[%clk 0:00:05.4]} 60...
Ke4 {[%clk 0:00:19.8]} 61. Re6+ {[%clk 0:00:05.3]} 61... Kd3 {[%clk 0:00:20]}
62. Rf6 {[%clk 0:00:03.8]} 62... Rd5 {[%clk 0:00:19.8]} 63. h4 {[%clk
0:00:03.8]} 63... gxh4 {[%clk 0:00:19.6]} 64. Rxf4 {[%clk 0:00:04.1]} 64... Rh5
{[%clk 0:00:18.5]} 65. Kd1 {[%clk 0:00:03.5]} 65... h3 {[%clk 0:00:18.5]} 66.
Rf1 {[%clk 0:00:03.9]} 66... h2 {[%clk 0:00:18.4]} 67. Rh1 {[%clk 0:00:04.3]}
67... Kc3 {[%clk 0:00:18.8]} 68. Kc1 {[%clk 0:00:04.8]} 68... d3 {[%clk
0:00:19]} 69. Kd1 {[%clk 0:00:05.1]} 69... Rb5 {[%clk 0:00:18.1]} 70. Kc1 {[%clk
0:00:03.7]} 70... d2+ {[%clk 0:00:17.8]} 71. Kd1 {[%clk 0:00:04.6]} 71... Rb1+
{[%clk 0:00:17.9]} 72. Ke2 {[%clk 0:00:05.5]} 72... Rxh1 {[%clk 0:00:18]} 73.
Kf3 {[%clk 0:00:04.9]} 0-1